bitfinex/quotes_SOLUSD_20260213
["timestamp","ask_amount","ask_price","bid_price","bid_amount"]
[1770995820259,17.03521589,82.34,82.3,17.03521589]
[1770995820464,17.03521589,82.36,82.321,3.49083186]
[1770995820665,17.03521589,82.37,82.331,3.3656151]
[1770995820967,12.13990021,82.373,82.34,17.03521589]
[1770995821290,3.44386784,82.379,82.35,17.03521589]
[1770995821467,3.44386784,82.379,82.34,17.03521589]
[1770995821966,3.44386784,82.379,82.331,3.3656151]
[1770995822172,3.44386784,82.369,82.33,17.03521589]
[1770995822477,17.03521589,82.37,82.33,17.03521589]
[1770995822478,20.47908373,82.37,82.33,20.40083099]
[1770995822790,3.44386784,82.388,82.351,3.3656151]
[1770995823690,3.44386784,82.388,82.36,17.03521589]
[1770995823985,17.03521589,82.39,82.351,3.3656151]
[1770995824365,3.44386784,82.4,82.37,17.03521589]
[1770995824565,3.44386784,82.428,82.39,20.40083099]
[1770995824771,12.13194705,82.427,82.4,17.03521589]
[1770995824976,17.03521589,82.44,82.41,17.03521589]
[1770995824977,3.44386784,82.439,82.41,17.03521589]
[1770995825475,3.44386784,82.45,82.41,17.03521589]
[1770995825679,3.44386784,82.449,82.41,17.03521589]
[1770995826278,3.44386784,82.439,82.4,17.03521589]
[1770995826587,3.44386784,82.448,82.402,3.3656151]
[1770995826884,17.03521589,82.44,82.402,3.3656151]
[1770995827086,30.32140691,82.45,82.401,12.13577505]
[1770995827087,17.03521589,82.45,82.411,3.3656151]
[1770995827264,3.44386784,82.449,82.41,17.03521589]
[1770995827469,3.44386784,82.439,82.4,17.03521589]
[1770995827685,42.44701194,82.456,82.42,17.03521589]
[1770995827686,12.1278114,82.456,82.42,17.03521589]
[1770995828067,12.1278114,82.456,82.401,42.47521267]
[1770995828068,3.44386784,82.449,82.41,17.03521589]
[1770995828487,3.44386784,82.447,82.41,17.03521589]
[1770995828701,3.44386784,82.439,82.401,12.13567001]
[1770995828912,3.44386784,82.439,82.41,17.03521589]
[1770995829092,3.44386784,82.457,82.42,17.03521589]
[1770995830010,3.44386784,82.449,82.411,3.3656151]
[1770995830406,3.44386784,82.438,82.401,12.13567001]
[1770995830793,3.44386784,82.438,82.383,44.52]
[1770995830794,3.44386784,82.429,82.38,12.13886865]
[1770995830998,3.44386784,82.419,82.38,23.06480281]
[1770995831503,3.44386784,82.455,82.411,3.3656151]
[1770995831696,3.44386784,82.455,82.41,10.92593416]
[1770995831697,3.44386784,82.449,82.41,10.92593416]
[1770995831895,3.44386784,82.449,82.42,10.92593416]
[1770995832432,12.12576847,82.469,82.431,3.3656151]
[1770995832612,12.12576847,82.469,82.44,10.92593416]
[1770995832982,3.44386784,82.469,82.43,10.92593416]
[1770995833200,12.12512915,82.474,82.38,59.48140878]
[1770995833201,3.44386784,82.459,82.42,10.92593416]
[1770995833397,42.4377125,82.474,82.406,15.50065381]
[1770995833398,3.44386784,82.449,82.406,15.50065381]
[1770995833600,3.44386784,82.449,82.41,10.92593416]
[1770995834497,3.44386784,82.447,82.41,23.06034167]
[1770995834701,47.9274136,82.458,82.43,10.92593416]
[1770995834908,12.1274136,82.458,82.423,3.3656151]
[1770995835288,3.44386784,82.457,82.398,44.44]
[1770995835493,12.1274136,82.458,82.377,3.3656151]
[1770995835494,10.92593416,82.42,82.377,3.3656151]
[1770995835696,10.92593416,82.42,82.38,10.92593416]
[1770995835697,3.44386784,82.419,82.38,10.92593416]
[1770995835896,3.44386784,82.419,82.38,14.29154926]
[1770995836296,3.44386784,82.444,82.41,10.92593416]
[1770995836515,10.92593416,82.45,82.412,3.3656151]
[1770995836722,3.44386784,82.455,82.421,3.3656151]
[1770995836899,10.92593416,82.45,82.412,3.3656151]
[1770995837100,12.12794795,82.455,82.42,10.92593416]
[1770995837424,12.12794795,82.455,82.411,12.13430245]
[1770995837425,12.12658921,82.464,82.43,10.92593416]
[1770995837595,10.92593416,82.46,82.43,10.92593416]
[1770995837924,3.44386784,82.449,82.407,12.13489145]
[1770995838127,3.44386784,82.449,82.42,10.92593416]
[1770995838296,3.44386784,82.449,82.411,3.3656151]
[1770995838491,12.12885697,82.448,82.411,3.3656151]
[1770995838789,48.48255699,82.504,82.44,14.29154926]
[1770995838994,3.44386784,82.489,82.46,10.92593416]
[1770995840008,3.44386784,82.502,82.47,10.92593416]
[1770995840190,12.12077136,82.503,82.48,10.92593416]
[1770995840394,3.44386784,82.499,82.44,3.3656151]
[1770995840603,10.92593416,82.51,82.47,10.92593416]
[1770995840807,35.82,82.508,82.47,10.92593416]
[1770995841120,3.44386784,82.507,82.47,10.92593416]
[1770995841719,3.44386784,82.499,82.47,10.92593416]
[1770995842019,3.44386784,82.499,82.461,12.12694485]
[1770995842194,3.44386784,82.498,82.461,12.12694485]
[1770995842621,3.44386784,82.498,82.46,10.92593416]
[1770995842915,3.44386784,82.489,82.45,10.92593416]
[1770995843313,35.82,82.499,82.449,15.49429089]
[1770995843314,12.12079142,82.503,82.47,14.29154926]
[1770995843511,35.86,82.502,82.47,3.3656151]
[1770995843693,3.44386784,82.517,82.49,10.92593416]
[1770995843896,3.44386784,82.519,82.481,3.3656151]
[1770995844296,3.44386784,82.518,82.45,10.92593416]
[1770995844516,3.44386784,82.499,82.46,10.92593416]
[1770995844815,3.44386784,82.521,82.471,3.3656151]
[1770995845018,3.44386784,82.53,82.5,10.89848021]
[1770995845322,3.44386784,82.53,82.491,3.3656151]
[1770995845323,3.44386784,82.529,82.491,3.3656151]
[1770995845817,10.89848021,82.52,82.48,10.89848021]
[1770995846021,3.44386784,82.509,82.47,10.89848021]
[1770995846317,3.44386784,82.507,82.47,10.89848021]
[1770995846517,10.89848021,82.5,82.47,10.89848021]
[1770995846708,12.12135904,82.499,82.47,10.89848021]
[1770995846910,15.56443324,82.505,82.47,10.89848021]
[1770995847298,10.89848021,82.5,82.47,10.89848021]
[1770995847500,3.44386784,82.499,82.46,23.02553751]
[1770995847809,12.1205654,82.505,82.395,48.54619106]
[1770995847810,3.44386784,82.479,82.433,3.3656151]
[1770995848009,3.44386784,82.469,82.433,3.3656151]
[1770995848200,3.44386784,82.459,82.42,14.26409531]
[1770995848402,3.44386784,82.449,82.411,12.1342945]
[1770995848622,10.89848021,82.44,82.408,3.3656151]
[1770995848813,3.44386784,82.449,82.39,44.28]
[1770995848814,3.44386784,82.449,82.42,10.89848021]
[1770995849120,12.12885697,82.448,82.411,3.3656151]
[1770995849702,14.34234805,82.44,82.4,3.3656151]
[1770995849898,3.44386784,82.447,82.41,14.26409531]
[1770995850100,12.12885697,82.448,82.39,44.28]
[1770995850101,10.89848021,82.43,82.398,3.3656151]
[1770995850629,42.45099941,82.448,82.359,3.3656151]
[1770995850630,3.44386784,82.409,82.359,3.3656151]
[1770995850809,35.86,82.408,82.381,3.5804606]
[1770995851014,35.86,82.413,82.381,3.5804606]
[1770995851329,4.61729252,82.457,82.36,42.49635744]
[1770995851330,3.6492699,82.434,82.4,14.47894081]
[1770995851635,10.89848021,82.43,82.39,10.89848021]
[1770995851923,3.6492699,82.433,82.375,44.28]
[1770995851924,3.6492699,82.433,82.4,10.89848021]
[1770995852302,12.12959256,82.443,82.41,10.89848021]
[1770995852919,12.12959256,82.443,82.411,3.5804606]
[1770995853120,12.12959256,82.443,82.412,3.5804606]
[1770995853824,3.6492699,82.439,82.4,10.89848021]
[1770995854015,3.6492699,82.439,82.401,3.5804606]
[1770995854418,12.12888002,82.448,82.42,14.47894081]
[1770995854729,10.89848021,82.44,82.395,12.13665877]
[1770995854916,3.6492699,82.429,82.4,10.89848021]
[1770995855121,3.6492699,82.429,82.39,44.24]
[1770995855427,10.89848021,82.41,82.372,12.1399779]
[1770995855606,3.6492699,82.409,82.372,12.1399779]
[1770995855803,3.6492699,82.409,82.373,3.5804606]
[1770995856115,10.89848021,82.43,82.391,3.5804606]
[1770995856509,10.89848021,82.43,82.372,12.1399779]
[1770995856510,12.13032824,82.438,82.401,3.51914409]
[1770995856723,3.53803028,82.429,82.39,14.4176243]
[1770995856917,12.13179987,82.428,82.392,3.51914409]
[1770995857122,10.89848021,82.42,82.392,3.51914409]
[1770995857319,12.13179987,82.428,82.392,3.51914409]
[1770995857529,15.66983015,82.428,82.392,3.51914409]
[1770995858036,10.89848021,82.43,82.401,3.51914409]
[1770995858211,14.43651049,82.43,82.39,14.4176243]
[1770995858411,10.89848021,82.42,82.39,3.51914409]
[1770995858707,10.89848021,82.42,82.38,10.89848021]
[1770995859004,12.13312464,82.419,82.38,10.89848021]
[1770995859208,35.94,82.418,82.38,10.89848021]
[1770995859537,10.89848021,82.41,82.37,10.89848021]
[1770995859829,10.89848021,82.41,82.368,44.24]
[1770995860034,10.89848021,82.41,82.368,56.38058955]
[1770995860213,10.89848021,82.41,82.37,10.89848021]
[1770995860728,46.85848021,82.41,82.371,3.51914409]
[1770995861233,12.13459694,82.409,82.373,3.51914409]
[1770995861408,12.13459694,82.409,82.381,3.51914409]
[1770995861605,42.47108931,82.409,82.381,3.51914409]
[1770995861808,12.13459694,82.409,82.381,3.51914409]
[1770995862030,35.98,82.416,82.391,3.51914409]
[1770995862227,12.13371352,82.415,82.381,3.51914409]
[1770995862526,12.13371352,82.415,82.314,103.25392877]
[1770995862527,10.89848021,82.39,82.353,3.51914409]
[1770995862729,188.07255959,82.415,82.353,3.51914409]
[1770995862730,10.89848021,82.38,82.353,3.51914409]
[1770995863432,12.13901601,82.379,82.341,3.51914409]
[1770995863624,42.48655603,82.379,82.341,3.51914409]
[1770995863930,97.06970818,82.415,82.329,42.51235894]
[1770995863931,10.89848021,82.4,82.361,3.51914409]
[1770995864122,36.0,82.412,82.381,3.51914409]
[1770995864445,10.89848021,82.41,82.381,3.51914409]
[1770995864608,42.46593624,82.419,82.381,3.51914409]
[1770995864809,36.02,82.418,82.381,3.51914409]
[1770995865008,3.53803028,82.417,82.381,3.51914409]
[1770995865237,10.89848021,82.41,82.381,3.51914409]
[1770995865441,3.53803028,82.399,82.357,3.51914409]
[1770995865607,3.53803028,82.399,82.356,44.28]
[1770995865608,36.02,82.408,82.371,3.51914409]
[1770995865808,12.13312464,82.419,82.381,3.51914409]
[1770995866126,3.53803028,82.437,82.401,3.51914409]
[1770995866341,10.89848021,82.42,82.389,3.51914409]
[1770995866548,3.53803028,82.419,82.38,14.4176243]
[1770995866729,3.53803028,82.419,82.381,3.51914409]
[1770995866930,14.43651049,82.43,82.391,3.51914409]
[1770995867327,12.13165269,82.429,82.393,3.51914409]
[1770995867854,3.53803028,82.48,82.411,3.51914409]
[1770995868040,10.89848021,82.45,82.42,14.4176243]
[1770995868233,14.43651049,82.47,82.43,14.4176243]
[1770995868432,10.89848021,82.46,82.431,3.51914409]
[1770995868636,3.53803028,82.459,82.421,3.51914409]
[1770995869257,3.53803028,82.468,82.43,10.89848021]
[1770995869565,3.53803028,82.466,82.411,12.13427676]
[1770995869747,10.89848021,82.44,82.401,3.51914409]
[1770995870151,3.53803028,82.439,82.401,3.51914409]
[1770995870466,36.06,82.444,82.41,10.89848021]
[1770995870764,14.43651049,82.45,82.41,10.89848021]
[1770995870931,36.06,82.449,82.41,10.89848021]
[1770995871133,3.53803028,82.448,82.41,10.89848021]
[1770995871334,3.53803028,82.448,82.411,3.51914409]
[1770995871537,42.45151429,82.447,82.411,3.51914409]
[1770995871762,10.89848021,82.44,82.411,3.51914409]
[1770995871947,10.89848021,82.44,82.41,10.89848021]
[1770995872145,10.89848021,82.44,82.4,3.51914409]
[1770995872146,3.53803028,82.439,82.4,14.4176243]
[1770995872479,3.53803028,82.439,82.387,30.34443381]
[1770995872480,12.12796996,82.455,82.421,3.51914409]
[1770995872751,12.12782729,82.455,82.43,14.4176243]
[1770995872958,12.12782729,82.455,82.42,14.4176243]
[1770995873160,12.12782729,82.455,82.421,3.51914409]
[1770995873359,12.12782729,82.455,82.382,48.55404165]
[1770995873360,3.53803028,82.429,82.368,3.51914409]
[1770995873535,10.89848021,82.42,82.371,3.51914409]
[1770995873743,8.10909792,82.419,82.381,3.51914409]
[1770995873942,12.13312464,82.419,82.381,3.51914409]
[1770995875148,12.13312464,82.419,82.349,30.35838467]
[1770995875149,10.89848021,82.4,82.35,10.89848021]
[1770995875462,3.53803028,82.399,82.352,3.51914409]
[1770995875769,66.43133955,82.423,82.371,3.51914409]
[1770995875770,3.53803028,82.409,82.371,3.51914409]
[1770995876460,48.52762327,82.428,82.381,3.51914409]
[1770995876461,12.13283022,82.421,82.381,3.51914409]
[1770995876667,10.89848021,82.41,82.381,3.51914409]
[1770995876855,3.53803028,82.419,82.381,3.51914409]
[1770995877061,3.53803028,82.419,82.37,10.89848021]
[1770995877062,3.53803028,82.419,82.37,3.51914409]
[1770995877265,14.43651049,82.41,82.37,3.51914409]
[1770995877650,12.13312464,82.419,82.372,3.51914409]
[1770995878051,10.89848021,82.43,82.381,3.51914409]
[1770995878269,10.89848021,82.44,82.391,3.51914409]
[1770995878671,12.12988682,82.441,82.391,3.51914409]
[1770995879051,36.14,82.447,82.401,3.51914409]
[1770995879246,10.89848021,82.46,82.411,3.51914409]
[1770995879552,3.53803028,82.475,82.421,3.51914409]
[1770995879760,12.12503334,82.474,82.421,3.51914409]
[1770995879959,10.89848021,82.47,82.421,3.51914409]
[1770995880156,3.53803028,82.469,82.421,3.51914409]
[1770995880355,42.43761669,82.474,82.431,3.51914409]
[1770995880356,12.12503334,82.474,82.431,3.51914409]
[1770995880673,10.89848021,82.46,82.42,47.4757835]
[1770995880863,10.89848021,82.45,82.42,44.04]
[1770995881074,10.89848021,82.45,82.408,3.4357835]
[1770995881285,3.55431204,82.419,82.379,3.4357835]
[1770995881576,3.55431204,82.387,82.343,3.4357835]
[1770995881754,10.89848021,82.35,82.313,12.14865947]
[1770995881951,10.89848021,82.35,82.259,48.62650895]
[1770995881952,10.89848021,82.33,82.296,3.4357835]
[1770995882191,3.55431204,82.349,82.296,3.4357835]
[1770995882501,3.55431204,82.387,82.321,3.4357835]
[1770995882684,3.55431204,82.339,82.301,3.4357835]
[1770995882855,10.89848021,82.33,82.291,3.4357835]
[1770995883371,3.55431204,82.359,82.292,1.40314627]
[1770995883575,10.89848021,82.36,82.311,1.40314627]
[1770995883768,10.89848021,82.36,82.31,10.89848021]
[1770995883769,10.89848021,82.36,82.321,1.40314627]
[1770995884577,10.89848021,82.38,82.33,1.40609151]
[1770995884780,10.89848021,82.4,82.351,1.40609151]
[1770995885008,10.89848021,82.41,82.361,1.40609151]
[1770995885183,10.89848021,82.4,82.353,1.40898767]
[1770995885359,48.51984703,82.441,82.371,1.40898767]
[1770995885360,15.68720083,82.421,82.371,1.40898767]
[1770995885562,36.08,82.441,82.332,4.61729252]
[1770995885563,3.55431204,82.398,82.356,12.14240613]
[1770995885784,3.55431204,82.389,82.356,12.14240613]
[1770995885985,3.55431204,82.402,82.36,10.89848021]
[1770995886181,10.89848021,82.4,82.356,43.90740914]
[1770995886687,10.89848021,82.42,82.371,1.41182007]
[1770995886859,3.55431204,82.418,82.371,1.41182007]
[1770995887274,12.13312464,82.419,82.38,10.89848021]
[1770995887479,12.13224689,82.425,82.38,12.31313847]
[1770995887777,12.13308223,82.42,82.381,12.1387213]
[1770995888083,3.55431204,82.419,82.381,12.1387213]
[1770995888377,15.68657445,82.425,82.382,1.4174542]
[1770995888583,3.55431204,82.424,82.382,1.4174542]
[1770995888791,3.55431204,82.424,82.381,42.48552456]
[1770995888967,10.89848021,82.42,82.37,10.89848021]
[1770995889170,10.89848021,82.4,82.353,45.40023758]
[1770995889372,10.89848021,82.39,82.353,43.98]
[1770995889588,3.55431204,82.377,82.328,1.42023758]
[1770995889777,10.89848021,82.36,82.329,12.14638827]
[1770995889978,3.55431204,82.385,82.341,1.42023758]
[1770995890202,10.89848021,82.38,82.336,43.98]
[1770995890488,3.55431204,82.369,82.336,43.98]
[1770995890699,3.55431204,82.359,82.317,30.3703258]
[1770995890991,3.55431204,82.359,82.318,30.37002842]
[1770995891364,3.55431204,82.359,82.32,10.89848021]
[1770995891581,3.55431204,82.359,82.318,30.37002842]
[1770995891788,12.14211127,82.358,82.318,12.14801137]
[1770995891964,10.89848021,82.34,82.318,12.14801137]
[1770995892278,12.14087602,82.367,82.321,1.42847666]
[1770995892881,10.89848021,82.37,82.33,10.89848021]
[1770995893079,12.13991355,82.373,82.33,12.32695687]
[1770995893392,8.12037429,82.372,82.331,1.43115173]
[1770995893600,12.13991355,82.373,82.331,1.43115173]
[1770995893887,10.89848021,82.38,82.34,10.89848021]
[1770995894203,10.89848021,82.38,82.34,1.43115173]
[1770995894575,12.13754263,82.389,82.339,44.0]
[1770995894576,3.55431204,82.369,82.339,44.0]
[1770995894776,10.89848021,82.38,82.34,1.4337643]
[1770995894981,3.55431204,82.379,82.339,44.0]
[1770995895278,14.45279225,82.37,82.339,44.0]
[1770995895477,3.55431204,82.369,82.339,44.0]
[1770995895895,3.55431204,82.369,82.34,12.1447656]
[1770995896071,3.55431204,82.369,82.339,44.0]
[1770995896390,3.55431204,82.367,82.323,12.14727354]
[1770995896691,12.14063714,82.368,82.327,44.04]
[1770995896692,3.55431204,82.359,82.327,44.04]
[1770995897771,3.55431204,82.339,82.29,11.09848021]
[1770995897976,12.1450606,82.338,82.297,30.37749175]
[1770995898175,10.89848021,82.33,82.292,13.59607309]
[1770995898379,10.89848021,82.32,82.292,12.15184951]
[1770995898579,10.89848021,82.32,82.29,0.2]
[1770995898580,3.55431204,82.309,82.29,0.2]
[1770995899103,3.55431204,82.319,82.29,0.2]
[1770995899307,3.55431204,82.319,82.291,12.15199718]
[1770995899594,10.89848021,82.31,82.29,0.2]
[1770995899798,10.89848021,82.32,82.29,0.2]
[1770995899978,12.14801137,82.318,82.29,0.2]
[1770995900301,12.14705777,82.325,82.29,12.35210739]
[1770995900804,3.55431204,82.309,82.29,0.2]
[1770995900973,10.89848021,82.31,82.29,0.2]
[1770995901172,3.55431204,82.309,82.29,0.2]
[1770995901573,3.55431204,82.322,82.29,0.2]
[1770995901787,3.55431204,82.319,82.291,12.15199718]
[1770995902092,10.89848021,82.32,82.29,0.2]
[1770995902093,3.55431204,82.317,82.29,0.2]
[1770995902394,10.89848021,82.34,82.3,10.89848021]
[1770995902690,4.61729252,82.367,82.291,42.53199013]
[1770995902691,3.55431204,82.359,82.321,1.45430323]
[1770995902896,10.89848021,82.35,82.305,1.45430323]
[1770995903075,10.89848021,82.35,82.301,44.02]
[1770995903076,3.55431204,82.349,82.301,44.02]
[1770995903270,14.45279225,82.33,82.294,44.02]
[1770995903496,3.55431204,82.329,82.294,44.02]
[1770995903697,3.55431204,82.329,82.291,42.53199013]
[1770995903698,10.89848021,82.32,82.291,12.15199718]
[1770995903899,3.55431204,82.319,82.267,1.45673857]
[1770995904115,3.55431204,82.298,82.264,12.1559856]
[1770995904406,3.55431204,82.327,82.281,1.45921369]
[1770995904580,12.14683089,82.326,82.29,10.89848021]
[1770995904986,12.14683089,82.326,82.282,44.02]
[1770995904987,36.02,82.35,82.31,10.94989395]
[1770995904988,12.14444403,82.343,82.31,10.94989395]
[1770995905195,3.55431204,82.329,82.282,44.02]
[1770995905398,10.94989395,82.31,82.273,1.46164384]
[1770995905697,10.94989395,82.31,82.26,0.2]
[1770995905698,36.02,82.336,82.26,0.2]
[1770995905699,3.55431204,82.303,82.26,12.3565639]
[1770995905875,3.55431204,82.303,82.27,10.94989395]
[1770995906079,4.61729252,82.327,82.28,12.41153779]
[1770995906080,3.55431204,82.327,82.28,12.41153779]
[1770995906303,3.55431204,82.327,82.272,42.54181251]
[1770995906304,3.55431204,82.327,82.29,10.94989395]
[1770995906597,10.13821425,82.374,82.272,42.54181251]
[1770995906598,3.55431204,82.337,82.3,10.94989395]
[1770995906803,10.94989395,82.38,82.285,44.02]
[1770995906804,3.55431204,82.346,82.285,44.02]
[1770995906974,3.55431204,82.339,82.3,10.94989395]
[1770995907174,3.55431204,82.351,82.32,10.94989395]
[1770995907401,3.55431204,82.349,82.31,10.94989395]
[1770995907694,14.50420599,82.32,82.28,10.94989395]
[1770995907876,3.55431204,82.32,82.29,10.94989395]
[1770995908072,3.55431204,82.335,82.3,10.94989395]
[1770995908413,12.14408284,82.345,82.31,10.94989395]
[1770995908609,3.55431204,82.347,82.291,42.53199013]
[1770995908610,3.55431204,82.359,82.32,0.96938788]
[1770995908780,3.55431204,82.359,82.33,10.94989395]
[1770995909099,3.55431204,82.358,82.33,10.94989395]
[1770995909499,3.55431204,82.358,82.32,10.94989395]
[1770995909691,3.55431204,82.404,82.35,10.94989395]
[1770995909892,3.55431204,82.389,82.35,10.94989395]
[1770995910082,35.98,82.403,82.36,10.94989395]
[1770995910083,12.13768995,82.388,82.36,10.94989395]
[1770995910679,3.70629292,82.387,82.351,12.14314337]
[1770995910895,3.70629292,82.387,82.343,12.14431126]
[1770995911191,3.70629292,82.379,82.341,12.14461811]
[1770995911397,3.70629292,82.369,82.33,10.94989395]
[1770995911700,3.70629292,82.369,82.331,12.14602875]
[1770995911896,3.70629292,82.369,82.319,12.14786379]
[1770995912077,3.70629292,82.339,82.301,12.15043165]
[1770995912277,10.94989395,82.35,82.31,10.94989395]
[1770995912533,3.70629292,82.349,82.31,10.94989395]
[1770995912879,3.70629292,82.349,82.295,43.98]
[1770995912880,3.70629292,82.339,82.295,43.98]
[1770995913101,3.70629292,82.342,82.31,10.94989395]
[1770995913278,10.94989395,82.35,82.32,10.94989395]
[1770995913600,3.70629292,82.349,82.31,10.94989395]
[1770995913799,3.70629292,82.349,82.279,4.61729252]
[1770995913800,3.70629292,82.339,82.279,0.98443744]
[1770995913978,3.70629292,82.329,82.29,10.94989395]
[1770995914178,10.94989395,82.33,82.291,12.15199718]
[1770995914179,3.70629292,82.327,82.291,12.15199718]
[1770995914391,3.70629292,82.339,82.3,10.94989395]
[1770995914602,3.70629292,82.329,82.29,10.94989395]
[1770995914794,42.50723915,82.339,82.28,10.94989395]
[1770995914795,3.70629292,82.319,82.28,10.94989395]
[1770995915297,10.94989395,82.32,82.28,10.94989395]
[1770995915494,3.70629292,82.319,82.28,10.94989395]
[1770995915705,10.94989395,82.31,82.27,10.94989395]
[1770995915877,10.94989395,82.31,82.261,0.98920108]
[1770995915878,3.70629292,82.309,82.28,10.94989395]
[1770995916079,3.70629292,82.307,82.27,10.94989395]
[1770995916307,3.70629292,82.307,82.27,23.1049124]
[1770995916508,42.52320551,82.308,82.262,12.15622579]
[1770995916509,3.70629292,82.299,82.262,12.15622579]
[1770995917001,14.37863961,82.3,82.261,12.15642892]
[1770995917302,12.14948729,82.308,82.27,11.94599419]
[1770995918092,10.94989395,82.31,82.271,12.15495131]
[1770995918093,12.14978251,82.306,82.271,12.15495131]
[1770995918492,12.14896227,82.312,82.28,10.94989395]
[1770995918812,3.42874566,82.299,82.27,10.94989395]
[1770995919596,3.42874566,82.299,82.266,44.0]
[1770995919912,14.37863961,82.31,82.27,10.94989395]
[1770995920109,48.5698558,82.356,82.282,12.15332636]
[1770995920110,12.14801137,82.318,82.282,12.15332636]
[1770995920322,3.42874566,82.317,82.282,12.15332636]
[1770995920622,3.42874566,82.317,82.28,23.10350285]
[1770995920826,3.42874566,82.309,82.269,12.15524681]
[1770995921002,3.42874566,82.309,82.28,10.94989395]
[1770995921310,3.42874566,82.309,82.269,12.15524681]
[1770995921311,3.42874566,82.334,82.3,10.94989395]
[1770995921510,3.42874566,82.346,82.31,10.94989395]
[1770995921726,13.4353526,82.389,82.31,10.94989395]
[1770995921727,3.42874566,82.357,82.32,10.94989395]
[1770995922019,3.42874566,82.357,82.276,5.36086188]
[1770995922020,3.42874566,82.368,82.34,10.94989395]
[1770995922207,3.42874566,82.368,82.341,12.14461811]
[1770995922552,3.42874566,82.359,82.321,12.14756866]
[1770995923394,3.42874566,82.359,82.33,10.94989395]
[1770995924221,10.94989395,82.37,82.331,1.01104121]
[1770995924513,10.13821425,82.393,82.33,23.09610015]
[1770995924514,3.42874566,82.388,82.341,1.01104121]
[1770995924714,3.42874566,82.379,82.34,10.94989395]
[1770995925098,3.42874566,82.379,82.35,10.94989395]
[1770995925299,12.13756253,82.389,82.33,23.09610015]
[1770995925300,8.10659976,82.378,82.33,23.09610015]
[1770995925501,3.42874566,82.369,82.325,12.14689137]
[1770995925896,3.42874566,82.379,82.341,1.01307655]
[1770995926115,3.42874566,82.369,82.325,12.14689137]
[1770995926417,3.42874566,82.367,82.33,10.94989395]
[1770995926623,12.14007873,82.372,82.34,10.94989395]
[1770995926799,8.11635548,82.371,82.34,10.94989395]
[1770995926996,12.14007873,82.372,82.34,10.94989395]
[1770995927195,3.42874566,82.389,82.35,10.94989395]
[1770995927399,3.42874566,82.379,82.34,10.94989395]
[1770995927617,3.42874566,82.377,82.34,10.94989395]
[1770995928405,3.42874566,82.387,82.35,10.94989395]
[1770995928814,3.42874566,82.409,82.37,10.94989395]
[1770995929018,12.13371352,82.415,82.341,42.50616339]
[1770995929019,3.42874566,82.399,82.363,44.04]
[1770995929330,3.42874566,82.399,82.36,10.94989395]
[1770995929624,3.42874566,82.389,82.36,10.94989395]
[1770995929999,3.42874566,82.399,82.37,10.94989395]
[1770995930421,36.04,82.419,82.352,44.04]
[1770995930422,3.42874566,82.397,82.36,10.94989395]
[1770995930613,3.42874566,82.397,82.352,56.18296647]
[1770995930816,3.42874566,82.379,82.352,44.04]
[1770995931026,3.42874566,82.379,82.345,44.04]
[1770995931701,10.94989395,82.39,82.35,10.94989395]
[1770995931903,15.56496255,82.398,82.356,1.02484032]
[1770995932105,15.56496255,82.398,82.37,10.94989395]
[1770995932106,3.42874566,82.397,82.37,10.94989395]
[1770995932419,3.42874566,82.418,82.381,12.1387213]
[1770995932622,3.42874566,82.409,82.377,44.04]
[1770995932820,3.42874566,82.409,82.372,44.04]
[1770995933015,3.42874566,82.407,82.38,10.94989395]
[1770995933644,10.94989395,82.4,82.342,12.14447062]
[1770995933806,3.42874566,82.389,82.35,10.94989395]
[1770995934525,3.42874566,82.387,82.345,12.14390736]
[1770995934716,3.42874566,82.387,82.35,10.94989395]
[1770995935328,3.42874566,82.379,82.345,12.14390736]
[1770995935529,3.42874566,82.359,82.319,30.36960288]
[1770995935710,3.42874566,82.359,82.32,42.51700679]
[1770995935912,3.42874566,82.359,82.32,23.09761017]
[1770995936317,3.42874566,82.347,82.31,10.94989395]
[1770995936638,3.42874566,82.347,82.312,12.14886676]
[1770995937031,12.14224787,82.358,82.32,10.94989395]
[1770995937222,3.42874566,82.357,82.32,10.94989395]
[1770995937732,3.42874566,82.368,82.34,10.94989395]
[1770995938033,3.42874566,82.369,82.33,10.94989395]
[1770995938233,12.13901601,82.379,82.34,10.94989395]
[1770995938410,3.42874566,82.376,82.341,12.14461811]
[1770995939210,3.42874566,82.376,82.34,10.94989395]
[1770995939607,3.42874566,82.376,82.341,12.14461811]
[1770995940014,12.13878619,82.381,82.35,10.94989395]
[1770995940210,3.42874566,82.387,82.35,10.94989395]
[1770995940423,3.42874566,82.387,82.336,44.06]
[1770995940424,3.42874566,82.396,82.361,12.14166899]
[1770995940623,12.13636418,82.397,82.35,12.14322233]
[1770995940624,3.42874566,82.389,82.35,12.14322233]
[1770995940837,3.65527789,82.387,82.35,12.14322233]
[1770995941220,3.65527789,82.387,82.35,23.09311628]
[1770995941429,46.13255254,82.397,82.351,1.04462311]
[1770995941633,3.65527789,82.427,82.39,10.94989395]
[1770995941839,13.4353526,82.453,82.351,218.57658071]
[1770995941840,11.14989395,82.45,82.41,10.94989395]
[1770995942032,20.24094735,82.449,82.39,1.42095207]
[1770995942230,10.94989395,82.42,82.389,44.08]